[Event "*** Titled Tuesday Blitz"]
[Site "Chess.com"]
[Date "2020.02.04"]
[Round "1"]
[White "DortmundCity"]
[Black "TheBigBoss04"]
[Result "1/2-1/2"]
[WhiteElo "2369"]
[BlackElo "2680"]
[TimeControl "180+2"]
[EndTime "13:15:41 PST"]
[Termination "Game drawn - insufficient material"]

1. e4 {[%clk 0:02:56.2]} 1... c5 {[%clk 0:03:00.9]} 2. Nf3 {[%clk 0:02:55.1]}
2... d6 {[%clk 0:03:01.5]} 3. d4 {[%clk 0:02:55.7]} 3... cxd4 {[%clk 0:03:02.8]}
4. Nxd4 {[%clk 0:02:56.7]} 4... Nf6 {[%clk 0:03:04.3]} 5. Nc3 {[%clk 0:02:57.5]}
5... Bd7 {[%clk 0:03:05]} 6. Bg5 {[%clk 0:02:56.5]} 6... e5 {[%clk 0:03:03.7]}
7. Nb3 {[%clk 0:02:55.6]} 7... Be6 {[%clk 0:02:59]} 8. Qd2 {[%clk 0:02:53.8]}
8... Nbd7 {[%clk 0:02:54.8]} 9. f3 {[%clk 0:02:52.7]} 9... a6 {[%clk 0:02:53.4]}
10. O-O-O {[%clk 0:02:52]} 10... b5 {[%clk 0:02:51.9]} 11. Kb1 {[%clk
0:02:50.9]} 11... Be7 {[%clk 0:02:47.4]} 12. g4 {[%clk 0:02:50.7]} 12... h6
{[%clk 0:02:27.9]} 13. Be3 {[%clk 0:02:49.4]} 13... Nb6 {[%clk 0:02:28.7]} 14.
h4 {[%clk 0:02:36.7]} 14... b4 {[%clk 0:02:23.2]} 15. Nd5 {[%clk 0:02:20.9]}
15... Nbxd5 {[%clk 0:02:20]} 16. exd5 {[%clk 0:02:21.7]} 16... Nxd5 {[%clk
0:02:20.8]} 17. Bf2 {[%clk 0:02:15]} 17... O-O {[%clk 0:02:13.2]} 18. Bd3 {[%clk
0:02:01.8]} 18... a5 {[%clk 0:02:00.7]} 19. g5 {[%clk 0:01:59.3]} 19... hxg5
{[%clk 0:01:46.2]} 20. hxg5 {[%clk 0:01:59.1]} 20... g6 {[%clk 0:01:47.6]} 21.
Be3 {[%clk 0:01:40.5]} 21... Kg7 {[%clk 0:01:39.8]} 22. Rh7+ {[%clk 0:01:25.1]}
22... Kg8 {[%clk 0:00:50.9]} 23. Rdh1 {[%clk 0:01:25]} 23... f5 {[%clk
0:00:44.8]} 24. Rh8+ {[%clk 0:01:14.2]} 24... Kf7 {[%clk 0:00:45.2]} 25. R1h7+
{[%clk 0:01:15.1]} 25... Ke8 {[%clk 0:00:46.3]} 26. Bb5+ {[%clk 0:01:16.1]}
26... Qd7 {[%clk 0:00:31.1]} 27. Bxd7+ {[%clk 0:01:14.1]} 27... Kxd7 {[%clk
0:00:33]} 28. Rxf8 {[%clk 0:01:12.1]} 28... Rxf8 {[%clk 0:00:34.9]} 29. Nxa5
{[%clk 0:01:11.7]} 29... Ra8 {[%clk 0:00:30.7]} 30. Nc4 {[%clk 0:01:11.5]} 30...
Nc3+ {[%clk 0:00:16.8]} 31. bxc3 {[%clk 0:01:09.9]} 31... Bxc4 {[%clk
0:00:17.8]} 32. cxb4 {[%clk 0:01:09]} 32... Bxa2+ {[%clk 0:00:18.7]} 33. Kb2
{[%clk 0:01:09.6]} 33... Bc4 {[%clk 0:00:20.2]} 34. Bc5 {[%clk 0:01:07.4]} 34...
Ra6 {[%clk 0:00:11.8]} 35. Bf2 {[%clk 0:00:48.2]} 35... Ra2+ {[%clk 0:00:11.4]}
36. Kb1 {[%clk 0:00:47.2]} 36... Ra3 {[%clk 0:00:11]} 37. Bc5 {[%clk 0:00:39.5]}
37... Ra6 {[%clk 0:00:10.4]} 38. f4 {[%clk 0:00:36.9]} 38... Ke6 {[%clk
0:00:10.6]} 39. Rxe7+ {[%clk 0:00:35.8]} 39... Kxe7 {[%clk 0:00:11.3]} 40. fxe5
{[%clk 0:00:36.3]} 40... dxc5 {[%clk 0:00:11.1]} 41. bxc5 {[%clk 0:00:37.5]}
41... Be6 {[%clk 0:00:11.1]} 42. Qb4 {[%clk 0:00:34.1]} 42... Rc6 {[%clk
0:00:12.6]} 43. Kc1 {[%clk 0:00:30.3]} 43... Bd5 {[%clk 0:00:13]} 44. Kd2 {[%clk
0:00:27.2]} 44... Ke6 {[%clk 0:00:14.4]} 45. Qd4 {[%clk 0:00:26.5]} 45... Ra6
{[%clk 0:00:10.1]} 46. c4 {[%clk 0:00:24.5]} 46... Be4 {[%clk 0:00:08.4]} 47.
Qd8 {[%clk 0:00:19.8]} 47... Kxe5 {[%clk 0:00:08.6]} 48. Qb8+ {[%clk 0:00:18.8]}
48... Kd4 {[%clk 0:00:08.5]} 49. Qd8+ {[%clk 0:00:06.7]} 49... Kxc4 {[%clk
0:00:09.9]} 50. Ke3 {[%clk 0:00:07.9]} 50... Kxc5 {[%clk 0:00:09.3]} 51. Kf4
{[%clk 0:00:08.9]} 51... Rd6 {[%clk 0:00:10.1]} 52. Qc7+ {[%clk 0:00:09.7]}
52... Bc6 {[%clk 0:00:10.2]} 53. Ke5 {[%clk 0:00:10]} 53... Rd5+ {[%clk
0:00:09.9]} 54. Ke6 {[%clk 0:00:11.4]} 54... f4 {[%clk 0:00:10.1]} 55. Qxf4
{[%clk 0:00:11.9]} 55... Bd7+ {[%clk 0:00:11.5]} 56. Ke7 {[%clk 0:00:11]} 56...
Bf5 {[%clk 0:00:13]} 57. Qc1+ {[%clk 0:00:09]} 57... Kd4 {[%clk 0:00:13.9]} 58.
Kf6 {[%clk 0:00:10.1]} 58... Rd6+ {[%clk 0:00:14]} 59. Ke7 {[%clk 0:00:10.6]}
59... Re6+ {[%clk 0:00:15.4]} 60. Kf7 {[%clk 0:00:12]} 60... Re3 {[%clk
0:00:15.2]} 61. Qd2+ {[%clk 0:00:10.4]} 61... Ke4 {[%clk 0:00:16.5]} 62. Kf6
{[%clk 0:00:11.6]} 62... Kf3 {[%clk 0:00:14.8]} 63. Qd5+ {[%clk 0:00:11.4]}
63... Be4 {[%clk 0:00:15]} 64. Qd6 {[%clk 0:00:11.4]} 64... Rd3 {[%clk
0:00:15.8]} 65. Qh2 {[%clk 0:00:11]} 65... Bf5 {[%clk 0:00:15.9]} 66. Qh1+
{[%clk 0:00:11.1]} 66... Kf4 {[%clk 0:00:17.1]} 67. Qh2+ {[%clk 0:00:12.1]}
67... Rg3 {[%clk 0:00:18.4]} 68. Qf2+ {[%clk 0:00:12]} 68... Kg4 {[%clk
0:00:18.2]} 69. Qd4+ {[%clk 0:00:12.8]} 69... Kh3 {[%clk 0:00:17.8]} 70. Qf4
{[%clk 0:00:13.6]} 70... Bd3 {[%clk 0:00:13.9]} 71. Kg7 {[%clk 0:00:13.3]} 71...
Bf5 {[%clk 0:00:08.5]} 72. Kh6 {[%clk 0:00:13.8]} 72... Kg2 {[%clk 0:00:08.5]}
73. Qd2+ {[%clk 0:00:14.2]} 73... Kf3 {[%clk 0:00:09.6]} 74. Qd1+ {[%clk
0:00:14.6]} 74... Kf4 {[%clk 0:00:10]} 75. Qe1 {[%clk 0:00:15.7]} 75... Rh3+
{[%clk 0:00:10.2]} 76. Kg7 {[%clk 0:00:16.5]} 76... Kxg5 {[%clk 0:00:11.1]} 77.
Qg1+ {[%clk 0:00:17.7]} 77... Kf4 {[%clk 0:00:12]} 78. Kf6 {[%clk 0:00:19]}
78... Rf3 {[%clk 0:00:11.4]} 79. Qc1+ {[%clk 0:00:20.4]} 79... Kg3 {[%clk
0:00:11.6]} 80. Kg5 {[%clk 0:00:20.8]} 80... Kg2 {[%clk 0:00:08.8]} 81. Qd2+
{[%clk 0:00:21.5]} 81... Rf2 {[%clk 0:00:09.7]} 82. Qe3 {[%clk 0:00:21.9]} 82...
Bc2 {[%clk 0:00:09.6]} 83. Kh4 {[%clk 0:00:21.7]} 83... Kf1 {[%clk 0:00:07.6]}
84. Kg3 {[%clk 0:00:21.7]} 84... Rg2+ {[%clk 0:00:04.2]} 85. Kf3 {[%clk
0:00:22.6]} 85... Bd1+ {[%clk 0:00:05.6]} 86. Kf4 {[%clk 0:00:20.9]} 86... Rf2+
{[%clk 0:00:05.1]} 87. Kg5 {[%clk 0:00:19.6]} 87... Rg2+ {[%clk 0:00:06.5]} 88.
Kf6 {[%clk 0:00:16.2]} 88... Bh5 {[%clk 0:00:04.8]} 89. Qc1+ {[%clk 0:00:14.8]}
89... Kf2 {[%clk 0:00:05.7]} 90. Qd2+ {[%clk 0:00:16]} 90... Kg1 {[%clk
0:00:06.9]} 91. Qe3+ {[%clk 0:00:16.7]} 91... Rf2+ {[%clk 0:00:07.3]} 92. Kg5
{[%clk 0:00:16.6]} 92... Kg2 {[%clk 0:00:07.7]} 93. Kh4 {[%clk 0:00:16]} 93...
Rf3 {[%clk 0:00:07]} 94. Qe2+ {[%clk 0:00:16.1]} 94... Rf2 {[%clk 0:00:07.3]}
95. Qe4+ {[%clk 0:00:17.2]} 95... Bf3 {[%clk 0:00:08.1]} 96. Qxg6+ {[%clk
0:00:17.9]} 96... Kf1 {[%clk 0:00:07.9]} 97. Qb1+ {[%clk 0:00:19]} 97... Kg2
{[%clk 0:00:08]} 98. Kg5 {[%clk 0:00:18.1]} 98... Re2 {[%clk 0:00:07.8]} 99. Qa1
{[%clk 0:00:17.5]} 99... Rf2 {[%clk 0:00:06.5]} 100. Qd4 {[%clk 0:00:17.9]}
100... Be2 {[%clk 0:00:06]} 101. Kh4 {[%clk 0:00:17.1]} 101... Bf3 {[%clk
0:00:06.5]} 102. Qf4 {[%clk 0:00:18]} 102... Be2 {[%clk 0:00:06.8]} 103. Qg3+
{[%clk 0:00:19]} 103... Kf1 {[%clk 0:00:08.3]} 104. Qe3 {[%clk 0:00:19.5]}
104... Rg2 {[%clk 0:00:06.2]} 105. Kh3 {[%clk 0:00:18.7]} 105... Rg1 {[%clk
0:00:05]} 106. Qc1+ {[%clk 0:00:16.4]} 106... Kf2 {[%clk 0:00:05.9]} 107. Qf4+
{[%clk 0:00:17.6]} 107... Bf3 {[%clk 0:00:07.5]} 108. Qd2+ {[%clk 0:00:18.9]}
108... Kf1 {[%clk 0:00:07.2]} 109. Qd3+ {[%clk 0:00:17]} 109... Kf2 {[%clk
0:00:06.9]} 110. Qd4+ {[%clk 0:00:17.8]} 110... Kf1 {[%clk 0:00:08]} 111. Qf4
{[%clk 0:00:17.8]} 111... Kf2 {[%clk 0:00:08.1]} 112. Qd2+ {[%clk 0:00:18.4]}
112... Be2 {[%clk 0:00:07.9]} 113. Kh2 {[%clk 0:00:15.2]} 113... Rg2+ {[%clk
0:00:08.1]} 114. Kh1 {[%clk 0:00:15.3]} 114... Rg4 {[%clk 0:00:07.7]} 115. Qh6
{[%clk 0:00:13]} 115... Rg1+ {[%clk 0:00:06]} 116. Kh2 {[%clk 0:00:13.8]} 116...
Rg2+ {[%clk 0:00:07.4]} 117. Kh3 {[%clk 0:00:12.8]} 117... Bf1 {[%clk
0:00:08.7]} 118. Qd2+ {[%clk 0:00:12.1]} 118... Kf3 {[%clk 0:00:07.3]} 119.
Qxg2+ {[%clk 0:00:10.2]} 119... Bxg2+ {[%clk 0:00:08.1]} 1/2-1/2

[Event "*** Titled Tuesday Blitz"]
[Site "Chess.com"]
[Date "2020.02.04"]
[Round "1"]
[White "GM_dmitrij"]
[Black "Kira170"]
[Result "0-1"]
[WhiteElo "2915"]
[BlackElo "2511"]
[TimeControl "180+2"]
[EndTime "13:16:03 PST"]
[Termination "Kira170 won by checkmate"]

1. e4 {[%clk 0:01:48.9]} 1... e6 {[%clk 0:03:00.4]} 2. d4 {[%clk 0:01:38.4]}
2... d5 {[%clk 0:03:01]} 3. Nd2 {[%clk 0:01:39.2]} 3... Nc6 {[%clk 0:03:01]} 4.
Ngf3 {[%clk 0:01:39.8]} 4... Nf6 {[%clk 0:03:02.1]} 5. e5 {[%clk 0:01:39.3]}
5... Nd7 {[%clk 0:03:03.1]} 6. Nb3 {[%clk 0:01:38.4]} 6... a5 {[%clk 0:03:02.6]}
7. a4 {[%clk 0:01:38.2]} 7... Be7 {[%clk 0:03:03.2]} 8. c3 {[%clk 0:01:38.6]}
8... f6 {[%clk 0:03:03.1]} 9. Bd3 {[%clk 0:01:40.3]} 9... fxe5 {[%clk
0:03:02.6]} 10. dxe5 {[%clk 0:01:37.7]} 10... Ndxe5 {[%clk 0:03:04.5]} 11. Nxe5
{[%clk 0:01:39.1]} 11... Nxe5 {[%clk 0:03:06.4]} 12. Qh5+ {[%clk 0:01:40.5]}
12... Nf7 {[%clk 0:03:07.8]} 13. O-O {[%clk 0:01:38.6]} 13... g6 {[%clk
0:03:05.8]} 14. Qe2 {[%clk 0:01:39.5]} 14... O-O {[%clk 0:03:05.2]} 15. f4
{[%clk 0:01:40.1]} 15... Nd6 {[%clk 0:02:59.8]} 16. Be3 {[%clk 0:01:40.1]} 16...
b6 {[%clk 0:02:56.1]} 17. Bd4 {[%clk 0:01:41.1]} 17... c5 {[%clk 0:02:52.3]} 18.
Be5 {[%clk 0:01:42.1]} 18... c4 {[%clk 0:02:51.5]} 19. Nd4 {[%clk 0:01:40.3]}
19... cxd3 {[%clk 0:02:52.5]} 20. Qxd3 {[%clk 0:01:42.2]} 20... Ba6 {[%clk
0:02:44.7]} 21. Nb5 {[%clk 0:01:42.1]} 21... Bxb5 {[%clk 0:02:40.1]} 22. axb5
{[%clk 0:01:44]} 22... Qd7 {[%clk 0:02:41]} 23. Rae1 {[%clk 0:01:36.1]} 23...
Qxb5 {[%clk 0:02:34.4]} 24. Qh3 {[%clk 0:01:36.9]} 24... Nf5 {[%clk 0:02:32]}
25. g4 {[%clk 0:01:37.7]} 25... Bc5+ {[%clk 0:02:27]} 26. Kh1 {[%clk 0:01:33.8]}
26... Ne7 {[%clk 0:02:00.1]} 27. Qh6 {[%clk 0:01:21.2]} 27... Rf7 {[%clk
0:01:59.8]} 28. f5 {[%clk 0:01:14.1]} 28... Qc6 {[%clk 0:01:53.2]} 29. h4 {[%clk
0:00:59.9]} 29... exf5 {[%clk 0:01:36.8]} 30. gxf5 {[%clk 0:01:00]} 30... d4+
{[%clk 0:01:38.2]} 31. Kh2 {[%clk 0:01:01.1]} 31... Bd6 {[%clk 0:01:37.5]} 32.
fxg6 {[%clk 0:00:54.4]} 32... Bxe5+ {[%clk 0:01:19.7]} 33. Rxe5 {[%clk
0:00:56.3]} 33... Qxg6 {[%clk 0:01:14.2]} 34. Rg1 {[%clk 0:00:50.9]} 34... Rf2+
{[%clk 0:01:15]} 35. Kh1 {[%clk 0:00:52.4]} 35... Rf1 {[%clk 0:01:16.3]} 36. Rg5
{[%clk 0:00:50.1]} 36... Raf8 {[%clk 0:01:04.4]} 37. h5 {[%clk 0:00:41.3]} 37...
Rxg1+ {[%clk 0:00:40]} 38. Rxg1 {[%clk 0:00:43.2]} 38... Qxg1+ {[%clk
0:00:40.9]} 39. Kxg1 {[%clk 0:00:44.3]} 39... dxc3 {[%clk 0:00:42]} 40. bxc3
{[%clk 0:00:30.7]} 40... Rf5 {[%clk 0:00:35.7]} 41. Qe6+ {[%clk 0:00:23.6]}
41... Kf8 {[%clk 0:00:36.3]} 42. h6 {[%clk 0:00:25.1]} 42... Rg5+ {[%clk
0:00:33.6]} 43. Kf2 {[%clk 0:00:21.4]} 43... Rg6 {[%clk 0:00:35.5]} 44. Qe3
{[%clk 0:00:22.7]} 44... Kf7 {[%clk 0:00:33.4]} 45. c4 {[%clk 0:00:19]} 45...
Rf6+ {[%clk 0:00:25.6]} 46. Kg2 {[%clk 0:00:19.2]} 46... Nf5 {[%clk 0:00:26.7]}
47. Qe5 {[%clk 0:00:16.7]} 47... Nxh6 {[%clk 0:00:26.6]} 48. Qc7+ {[%clk
0:00:17.7]} 48... Kg6 {[%clk 0:00:27.4]} 49. Qg3+ {[%clk 0:00:18.7]} 49... Kf7
{[%clk 0:00:28]} 50. Qc7+ {[%clk 0:00:19.5]} 50... Kg8 {[%clk 0:00:29.1]} 51.
Qd8+ {[%clk 0:00:19.8]} 51... Kg7 {[%clk 0:00:30]} 52. Qd4 {[%clk 0:00:16.1]}
52... Nf7 {[%clk 0:00:29]} 53. Kg3 {[%clk 0:00:16.9]} 53... h6 {[%clk
0:00:28.4]} 54. Kg4 {[%clk 0:00:16.8]} 54... Kg6 {[%clk 0:00:29.3]} 55. Qe4+
{[%clk 0:00:17.6]} 55... Kg7 {[%clk 0:00:30.2]} 56. Qd4 {[%clk 0:00:19.1]} 56...
Ng5 {[%clk 0:00:27.3]} 57. Kh5 {[%clk 0:00:16.5]} 57... Nf7 {[%clk 0:00:23.6]}
58. Qb2 {[%clk 0:00:16.2]} 58... Nd8 {[%clk 0:00:21.7]} 59. Qg2+ {[%clk
0:00:15.5]} 59... Kh7 {[%clk 0:00:14]} 60. Qe4+ {[%clk 0:00:14.9]} 60... Kg7
{[%clk 0:00:14.5]} 61. Qg2+ {[%clk 0:00:16]} 61... Kh7 {[%clk 0:00:14.8]} 62.
Qb2 {[%clk 0:00:16.4]} 62... Rd6 {[%clk 0:00:12.5]} 63. Qc2+ {[%clk 0:00:15.8]}
63... Kg7 {[%clk 0:00:13]} 64. Qg2+ {[%clk 0:00:16.5]} 64... Kh7 {[%clk
0:00:14]} 65. Qe4+ {[%clk 0:00:17.6]} 65... Kg7 {[%clk 0:00:15.4]} 66. Qe5+
{[%clk 0:00:11.5]} 66... Rf6 {[%clk 0:00:12.8]} 67. Qg3+ {[%clk 0:00:13.4]}
67... Kh7 {[%clk 0:00:13.5]} 68. Qc3 {[%clk 0:00:13.3]} 68... Kg7 {[%clk
0:00:13.8]} 69. Qg3+ {[%clk 0:00:13]} 69... Kh7 {[%clk 0:00:14.8]} 70. Qe5
{[%clk 0:00:14.6]} 70... Kg7 {[%clk 0:00:15.3]} 71. c5 {[%clk 0:00:14.9]} 71...
bxc5 {[%clk 0:00:15.6]} 72. Qxc5 {[%clk 0:00:16.8]} 72... Nf7 {[%clk 0:00:16.2]}
73. Qxa5 {[%clk 0:00:17.7]} 73... Nd6 {[%clk 0:00:17.2]} 74. Qa1 {[%clk
0:00:17.7]} 74... Nf7 {[%clk 0:00:17.7]} 75. Qg1+ {[%clk 0:00:18.5]} 75... Kh7
{[%clk 0:00:18.4]} 76. Qd4 {[%clk 0:00:18.7]} 76... Kg7 {[%clk 0:00:19.4]} 77.
Qc3 {[%clk 0:00:19.2]} 77... Nd6 {[%clk 0:00:19.7]} 78. Qg3+ {[%clk 0:00:20.1]}
78... Kh7 {[%clk 0:00:20.3]} 79. Qd3+ {[%clk 0:00:20.8]} 79... Kg7 {[%clk
0:00:21.4]} 80. Qc2 {[%clk 0:00:20.9]} 80... Nf7 {[%clk 0:00:22]} 81. Qc7 {[%clk
0:00:20.8]} 81... Rf5+ {[%clk 0:00:23]} 82. Kg4 {[%clk 0:00:21.6]} 82... Rf6
{[%clk 0:00:24.9]} 83. Qe7 {[%clk 0:00:22.5]} 83... Rg6+ {[%clk 0:00:21.6]} 84.
Kh5 {[%clk 0:00:16.1]} 84... Rf6 {[%clk 0:00:21]} 85. Qa7 {[%clk 0:00:16]} 85...
Rf5+ {[%clk 0:00:21.1]} 86. Kg4 {[%clk 0:00:17.2]} 86... Rf6 {[%clk 0:00:22.7]}
87. Kh4 {[%clk 0:00:18.8]} 87... Rf4+ {[%clk 0:00:23.2]} 88. Kg3 {[%clk
0:00:19.6]} 88... Rf6 {[%clk 0:00:25.1]} 89. Qa1 {[%clk 0:00:20.5]} 89... Nd6
{[%clk 0:00:25.2]} 90. Kh3 {[%clk 0:00:20.2]} 90... Nf7 {[%clk 0:00:26.2]} 91.
Qd4 {[%clk 0:00:18.2]} 91... Ng5+ {[%clk 0:00:26.8]} 92. Kg4 {[%clk 0:00:18.9]}
92... Nf7 {[%clk 0:00:27.7]} 93. Qc3 {[%clk 0:00:20.4]} 93... Nd6 {[%clk
0:00:27.9]} 94. Qc7+ {[%clk 0:00:21.4]} 94... Nf7 {[%clk 0:00:28.9]} 95. Qb7
{[%clk 0:00:22.7]} 95... Rg6+ {[%clk 0:00:28.6]} 96. Kf3 {[%clk 0:00:23.9]}
96... Rf6+ {[%clk 0:00:30.5]} 97. Ke4 {[%clk 0:00:24.2]} 97... Re6+ {[%clk
0:00:31.2]} 98. Kd5 {[%clk 0:00:24.5]} 98... Rf6 {[%clk 0:00:33.1]} 99. Qb2
{[%clk 0:00:25]} 99... Nd6 {[%clk 0:00:33.1]} 100. Qa1 {[%clk 0:00:24.8]} 100...
Nf7 {[%clk 0:00:33.3]} 101. Qb1 {[%clk 0:00:23.5]} 101... Rg6 {[%clk 0:00:32.9]}
102. Qb2+ {[%clk 0:00:23.7]} 102... Rf6 {[%clk 0:00:33.9]} 103. Qa1 {[%clk
0:00:25.6]} 103... Kg6 {[%clk 0:00:34.2]} 104. Qg1+ {[%clk 0:00:20.8]} 104...
Ng5 {[%clk 0:00:35.3]} 105. Qg4 {[%clk 0:00:18.2]} 105... Rf5+ {[%clk
0:00:35.5]} 106. Kc6 {[%clk 0:00:17.3]} 106... h5 {[%clk 0:00:34.6]} 107. Qg3
{[%clk 0:00:13.3]} 107... Rf3 {[%clk 0:00:31]} 108. Qe1 {[%clk 0:00:11.4]}
108... Rf4 {[%clk 0:00:28.6]} 109. Qb1+ {[%clk 0:00:10.7]} 109... Re4 {[%clk
0:00:28.9]} 110. Kd5 {[%clk 0:00:09.4]} 110... h4 {[%clk 0:00:29.9]} 111. Qd1
{[%clk 0:00:09.7]} 111... h3 {[%clk 0:00:27.2]} 112. Qh1 {[%clk 0:00:10.4]}
112... Kf5 {[%clk 0:00:26.7]} 113. Qf1+ {[%clk 0:00:11.1]} 113... Kg4 {[%clk
0:00:27.3]} 114. Qd1+ {[%clk 0:00:11.8]} 114... Kf4 {[%clk 0:00:24.4]} 115. Qc1+
{[%clk 0:00:12.2]} 115... Kg4 {[%clk 0:00:18.9]} 116. Qc8+ {[%clk 0:00:12.8]}
116... Kg3 {[%clk 0:00:17.9]} 117. Qc3+ {[%clk 0:00:13.4]} 117... Kf4 {[%clk
0:00:17.3]} 118. Qf6+ {[%clk 0:00:13.3]} 118... Kg4 {[%clk 0:00:18]} 119. Qh6
{[%clk 0:00:12.9]} 119... Rf4 {[%clk 0:00:17.8]} 120. Qh8 {[%clk 0:00:10.9]}
120... Rf2 {[%clk 0:00:16.4]} 121. Qc8+ {[%clk 0:00:09.1]} 121... Kg3 {[%clk
0:00:17.3]} 122. Qg8 {[%clk 0:00:09.2]} 122... Rf5+ {[%clk 0:00:17.5]} 123. Kd4
{[%clk 0:00:10.4]} 123... h2 {[%clk 0:00:19.3]} 124. Qb8+ {[%clk 0:00:11.1]}
124... Kg2 {[%clk 0:00:20.1]} 125. Qb2+ {[%clk 0:00:10]} 125... Rf2 {[%clk
0:00:19.8]} 126. Qb7+ {[%clk 0:00:10.1]} 126... Nf3+ {[%clk 0:00:20.7]} 127. Ke3
{[%clk 0:00:11.3]} 127... h1=Q {[%clk 0:00:19.3]} 128. Qg7+ {[%clk 0:00:12.8]}
128... Kf1 {[%clk 0:00:19.9]} 129. Qa1+ {[%clk 0:00:10.5]} 129... Ne1 {[%clk
0:00:21]} 130. Qa6+ {[%clk 0:00:10]} 130... Kg1 {[%clk 0:00:20.7]} 131. Qg6+
{[%clk 0:00:08.1]} 131... Qg2 {[%clk 0:00:21.5]} 132. Qb6 {[%clk 0:00:08.6]}
132... Qf3+ {[%clk 0:00:21.2]} 133. Kd4 {[%clk 0:00:09.8]} 133... Qd3+ {[%clk
0:00:21]} 134. Ke5 {[%clk 0:00:10.7]} 134... Kg2 {[%clk 0:00:21.1]} 135. Ke6
{[%clk 0:00:10.8]} 135... Re2+ {[%clk 0:00:21.6]} 136. Kf7 {[%clk 0:00:11.7]}
136... Qf3+ {[%clk 0:00:22.2]} 137. Kg6 {[%clk 0:00:11.5]} 137... Re4 {[%clk
0:00:22.5]} 138. Qb2+ {[%clk 0:00:11.2]} 138... Kh3 {[%clk 0:00:22.9]} 139. Qh8+
{[%clk 0:00:11.2]} 139... Rh4 {[%clk 0:00:23.2]} 140. Qb2 {[%clk 0:00:08.2]}
140... Rg4+ {[%clk 0:00:23.5]} 141. Kh5 {[%clk 0:00:08.5]} 141... Qf5+ {[%clk
0:00:24]} 142. Kh6 {[%clk 0:00:10.4]} 142... Qg6# {[%clk 0:00:25]} 0-1

[Event "*** Titled Tuesday Blitz"]
[Site "Chess.com"]
[Date "2020.02.04"]
[Round "2"]
[White "DanielDardha2005"]
[Black "KhazarBabazada"]
[Result "1-0"]
[WhiteElo "2576"]
[BlackElo "2883"]
[TimeControl "180+2"]
[EndTime "13:17:55 PST"]
[Termination "DanielDardha2005 won by resignation"]

1. Nf3 {[%clk 0:03:01.9]} 1... Nf6 {[%clk 0:03:01.9]} 2. g3 {[%clk 0:03:00.6]}
2... g6 {[%clk 0:03:03.8]} 3. Bg2 {[%clk 0:03:01.6]} 3... Bg7 {[%clk 0:03:02.1]}
4. b3 {[%clk 0:03:01.8]} 4... O-O {[%clk 0:03:00.2]} 5. Bb2 {[%clk 0:03:02.3]}
5... d5 {[%clk 0:03:01.4]} 6. O-O {[%clk 0:03:02.5]} 6... c5 {[%clk 0:03:02.7]}
7. e3 {[%clk 0:03:03.9]} 7... Nc6 {[%clk 0:03:03.5]} 8. Ne5 {[%clk 0:03:05]}
8... Qc7 {[%clk 0:03:03.6]} 9. Nxc6 {[%clk 0:03:05.4]} 9... bxc6 {[%clk
0:03:04.4]} 10. Nc3 {[%clk 0:03:05]} 10... a5 {[%clk 0:03:05.4]} 11. Na4 {[%clk
0:03:06.1]} 11... Nd7 {[%clk 0:03:06]} 12. Bxg7 {[%clk 0:03:07]} 12... Kxg7
{[%clk 0:03:07.9]} 13. c4 {[%clk 0:03:08.9]} 13... e6 {[%clk 0:03:06.8]} 14. Rc1
{[%clk 0:03:08.6]} 14... Bb7 {[%clk 0:03:06]} 15. cxd5 {[%clk 0:03:04.8]} 15...
cxd5 {[%clk 0:03:07.9]} 16. Nxc5 {[%clk 0:03:06.1]} 16... Nxc5 {[%clk 0:02:55]}
17. d4 {[%clk 0:03:05.5]} 17... Rac8 {[%clk 0:02:55.8]} 18. Rxc5 {[%clk
0:03:05.9]} 18... Qb6 {[%clk 0:02:55.8]} 19. Qc2 {[%clk 0:03:04.1]} 1-0

[Event "*** Titled Tuesday Blitz"]
[Site "Chess.com"]
[Date "2020.02.04"]
[Round "2"]
[White "friesnielsen2302"]
[Black "Valk4"]
[Result "1-0"]
[WhiteElo "2507"]
[BlackElo "2267"]
[TimeControl "180+2"]
[EndTime "13:18:44 PST"]
[Termination "friesnielsen2302 won by resignation"]

1. d4 {[%clk 0:03:01.4]} 1... Nf6 {[%clk 0:03:00.6]} 2. Nc3 {[%clk 0:03:01.9]}
2... d5 {[%clk 0:03:00.9]} 3. Bf4 {[%clk 0:03:01.6]} 3... e6 {[%clk 0:02:59.4]}
4. e3 {[%clk 0:03:02.4]} 4... Bd6 {[%clk 0:03:00.1]} 5. Bd3 {[%clk 0:02:59.3]}
5... O-O {[%clk 0:02:59.9]} 6. Nf3 {[%clk 0:02:59.2]} 6... Nbd7 {[%clk
0:02:59.2]} 7. O-O {[%clk 0:02:56.5]} 7... b6 {[%clk 0:02:53.7]} 8. Ne5 {[%clk
0:02:53]} 8... Bb7 {[%clk 0:02:53.5]} 9. Qf3 {[%clk 0:02:53.3]} 9... Qe7 {[%clk
0:02:49.8]} 10. Qh3 {[%clk 0:02:53.5]} 10... Rfe8 {[%clk 0:01:52.6]} 11. Nxd7
{[%clk 0:02:48.2]} 11... Nxd7 {[%clk 0:01:53]} 12. Qxh7+ {[%clk 0:02:46.1]} 1-0

[Event "*** Titled Tuesday Blitz"]
[Site "Chess.com"]
[Date "2020.02.04"]
[Round "2"]
[White "joshdaruca"]
[Black "parmupill123"]
[Result "1-0"]
[WhiteElo "2693"]
[BlackElo "2377"]
[TimeControl "180+2"]
[EndTime "13:19:17 PST"]
[Termination "joshdaruca won by resignation"]

1. e4 {[%clk 0:03:01.9]} 1... e6 {[%clk 0:03:00.9]} 2. d4 {[%clk 0:03:01.7]}
2... d5 {[%clk 0:03:01.7]} 3. Nc3 {[%clk 0:03:03.2]} 3... Bb4 {[%clk 0:03:02]}
4. e5 {[%clk 0:03:04.3]} 4... c5 {[%clk 0:03:02.8]} 5. a3 {[%clk 0:03:05.7]}
5... Bxc3+ {[%clk 0:03:04]} 6. bxc3 {[%clk 0:03:07.6]} 6... Qc7 {[%clk
0:03:05.2]} 7. Qg4 {[%clk 0:03:09]} 7... f6 {[%clk 0:03:05.8]} 8. Bb5+ {[%clk
0:02:31.1]} 8... Kf8 {[%clk 0:03:05.8]} 9. Nf3 {[%clk 0:02:23.3]} 9... c4 {[%clk
0:03:04.3]} 10. a4 {[%clk 0:02:21.4]} 10... f5 {[%clk 0:03:04.6]} 11. Ba3+
{[%clk 0:02:19.8]} 11... Ne7 {[%clk 0:03:02.5]} 12. Qh5 {[%clk 0:02:17.7]} 12...
g6 {[%clk 0:02:41.2]} 13. Qh6+ {[%clk 0:02:17.3]} 13... Kg8 {[%clk 0:02:42.7]}
14. h4 {[%clk 0:02:10]} 14... a6 {[%clk 0:02:40.4]} 15. Qg5 {[%clk 0:01:51]}
15... Kf7 {[%clk 0:02:34.3]} 16. Qf6+ {[%clk 0:01:51.2]} 1-0